bitfinex/quotes_SOLUSD_20250316
["timestamp","ask_amount","ask_price","bid_price","bid_amount"]
[1742155153473,0.03,127.11,127.1,10.99200289]
[1742155154444,0.03,127.11,127.1,11.13416446]
[1742155155259,0.03,127.11,127.1,17.42836446]
[1742155156155,0.03,127.14,127.1,17.42836446]
[1742155156467,0.03,127.14,127.13,10.84984132]
[1742155157365,0.03,127.14,127.13,60.82622974]
[1742155159189,0.03,127.15,127.14,0.28432314]
[1742155159361,0.03,127.17,127.16,31.13416446]
[1742155159561,0.03,127.17,127.16,32.67316446]
[1742155160380,0.03,127.17,127.16,344.67316446]
[1742155160678,0.03,127.17,127.16,350.96436446]
[1742155162668,0.03,127.17,127.16,38.96436446]
[1742155163257,0.03,127.17,127.16,10.84984132]
[1742155163457,0.03,127.17,127.15,10.84984132]
[1742155163657,0.03,127.17,127.14,10.84984132]
[1742155163879,0.03,127.17,127.15,10.84984132]
[1742155164056,0.03,127.17,127.16,10.84984132]
[1742155164475,0.03,127.17,127.15,10.84984132]
[1742155165065,0.03,127.17,127.16,10.84984132]
[1742155165670,0.03,127.17,127.16,30.84984132]
[1742155167065,0.03,127.17,127.13,0.28432314]
[1742155167364,0.03,127.17,127.15,10.84984132]
[1742155167564,0.03,127.17,127.16,10.84984132]
[1742155168383,0.03,127.17,127.15,10.84984132]
[1742155168575,0.03,127.17,127.14,10.84984132]
[1742155168875,0.03,127.17,127.16,10.84984132]
[1742155169214,0.03,127.17,127.15,10.84984132]
[1742155169987,0.03,127.17,127.16,10.84984132]
[1742155175787,0.03,127.17,127.16,17.14104132]
[1742155176388,0.03,127.17,127.16,10.84984132]
[1742155178571,0.03,127.17,127.15,10.84984132]
[1742155179270,0.03,127.17,127.14,10.84984132]
[1742155181483,0.03,127.17,127.12,1.539]
[1742155181670,0.03,127.17,127.13,10.84984132]
[1742155181870,18.67964886,127.17,127.13,10.84984132]
[1742155182693,6.2912,127.16,127.13,10.84984132]
[1742155183292,6.2912,127.16,127.14,0.063]
[1742155184695,18.64964886,127.15,127.14,0.063]
[1742155184878,29.49949018,127.15,127.14,0.063]
[1742155185085,35.59799018,127.15,127.14,0.063]
[1742155186005,41.88969018,127.15,127.14,0.063]
[1742155187275,31.03984886,127.15,127.14,0.063]
[1742155191581,41.88969018,127.15,127.14,0.063]
[1742155193605,31.03984886,127.15,127.14,0.063]
[1742155194211,24.94134886,127.15,127.14,0.063]
[1742155198912,0.03,127.17,127.14,10.91284132]
[1742155199094,0.03,127.17,127.16,10.84984132]
[1742155199294,0.03,127.17,127.16,19.06954132]
[1742155199819,0.03,127.18,127.17,0.28432314]
[1742155200114,0.03,127.18,127.17,11.13416446]
[1742155200909,0.03,127.18,127.17,17.42486446]
[1742155201693,0.03,127.18,127.17,17.14054132]
[1742155201913,0.03,127.18,127.17,17.42486446]
[1742155202103,0.03,127.18,127.17,330.6039108]
[1742155202418,0.03,127.18,127.14,0.063]
[1742155205114,32.54784886,127.03,127.01,0.063]
[1742155206415,35.61341429,127.02,127.01,0.063]
[1742155206617,76.99773743,127.02,127.01,0.063]
[1742155206797,35.89773743,127.02,127.01,0.063]
[1742155207121,42.19593743,127.02,127.01,0.063]
[1742155207295,38.64964886,126.99,126.98,0.063]
[1742155207492,55.61341429,126.99,126.98,0.063]
[1742155207718,38.933972,126.99,126.98,0.063]
[1742155207915,56.39773743,126.99,126.98,0.063]
[1742155208520,20.28432314,126.96,126.95,0.063]
[1742155208704,18.64964886,126.96,126.95,0.063]
[1742155208913,6.2982,127.02,126.95,17.02676543]
[1742155208914,18.64964886,127.01,126.95,17.02676543]
[1742155209111,18.64964886,127.01,126.99,16.96376543]
[1742155209419,7.6,127.02,126.98,16.96376543]
[1742155209615,18.64964886,127.01,126.98,16.96376543]
[1742155210206,18.64964886,127.01,126.99,16.96376543]
[1742155211124,7.6,127.08,127.0,27.12202497]
[1742155211317,7.6,127.08,127.05,27.12202497]
[1742155211700,7.6,127.08,127.06,27.12202497]
[1742155211901,7.6,127.08,127.05,27.12202497]
[1742155212316,7.6,127.08,127.06,27.12202497]
[1742155212927,18.64964886,127.11,127.07,27.12202497]
[1742155213101,18.64964886,127.11,127.08,27.12202497]
[1742155213303,7.6,127.12,127.07,27.12202497]
[1742155213829,18.64964886,127.11,127.08,27.12202497]
[1742155214125,18.64964886,127.11,127.07,27.12202497]
[1742155214430,18.64964886,127.11,127.08,27.12202497]
[1742155215005,18.64964886,127.11,127.07,27.12202497]
[1742155215215,18.64964886,127.11,127.03,6.2977]
[1742155215418,27.12202497,127.07,127.02,27.12202497]
[1742155215622,26.24964886,127.06,127.02,27.12202497]
[1742155215934,26.24964886,127.06,127.01,27.12202497]
[1742155216228,26.24964886,127.06,127.03,27.12202497]
[1742155216726,7.6,127.06,127.03,27.12202497]
[1742155217033,18.64964886,127.08,127.05,27.12202497]
[1742155217243,18.64964886,127.11,127.07,27.12202497]
[1742155217408,7.6,127.12,127.08,27.12202497]
[1742155217809,18.64964886,127.13,127.09,27.12202497]
[1742155218126,53.37167383,127.13,127.08,0.063]
[1742155218327,18.64964886,127.11,127.08,0.063]
[1742155220331,45.77167383,127.09,127.08,0.063]
[1742155220532,46.05599697,127.09,127.08,0.063]
[1742155221037,52.35069697,127.09,127.08,0.063]
[1742155221440,18.64964886,127.09,127.08,0.063]
[1742155221764,18.64964886,127.12,127.08,54.30704994]
[1742155221911,6.3218,127.15,127.11,27.12202497]
[1742155222308,0.03,127.15,127.12,27.12202497]
[1742155222546,0.14216157,127.14,127.08,0.063]
[1742155222735,18.64964886,127.11,127.08,0.063]
[1742155222914,18.64964886,127.11,127.08,27.18502497]
[1742155223131,18.64964886,127.1,127.08,0.063]
[1742155223827,18.64964886,127.12,127.08,27.18502497]
[1742155224026,26.24964886,127.12,127.08,27.18502497]
[1742155225123,27.40634811,127.11,127.08,0.063]
[1742155225328,18.64964886,127.09,127.08,0.063]
[1742155225734,18.64964886,127.11,127.08,27.18502497]
[1742155226438,13.8933,127.12,127.09,27.12202497]
[1742155226638,7.6,127.12,127.08,27.18502497]
[1742155226834,7.6,127.12,127.09,27.12202497]
[1742155227134,24.94244886,127.13,127.1,27.12202497]
[1742155229044,24.94234886,127.13,127.1,27.12202497]
[1742155229232,18.64964886,127.13,127.1,27.12202497]
[1742155230025,18.67964886,127.13,127.1,27.12202497]
[1742155230228,18.67964886,127.13,127.11,27.12202497]
[1742155230436,0.03,127.13,127.11,27.12202497]
[1742155231139,0.03,127.13,127.1,27.12202497]
[1742155231342,6.3228,127.13,127.1,27.12202497]
[1742155231523,0.03,127.13,127.12,27.12202497]
[1742155231848,0.03,127.15,127.14,20.0]
[1742155232026,0.03,127.18,127.17,27.12202497]
[1742155232230,0.03,127.18,127.17,34.99462497]
[1742155233058,0.03,127.2,127.17,34.99462497]
[1742155233236,0.03,127.2,127.17,28.68832497]
[1742155233944,0.03,127.2,127.18,27.12202497]
[1742155234264,0.03,127.2,127.17,1.5663]
[1742155234562,18.67964886,127.2,127.15,27.12202497]
[1742155235038,18.67964886,127.2,127.16,27.12202497]
[1742155235436,18.67964886,127.2,127.18,27.12202497]
[1742155235646,6.3193,127.2,127.18,27.12202497]
[1742155236151,0.03,127.2,127.19,27.12202497]
[1742155238050,0.03,127.2,127.18,27.12202497]
[1742155238257,0.03,127.2,127.19,27.12202497]
[1742155239433,0.03,127.2,127.18,27.12202497]
[1742155239760,0.03,127.2,127.17,27.12202497]
[1742155240055,45.80167383,127.2,127.13,7.8589]
[1742155240230,45.80167383,127.2,127.15,27.12202497]
[1742155240426,18.67964886,127.2,127.16,27.12202497]
[1742155240832,18.67964886,127.2,127.15,27.12202497]
[1742155241053,0.03,127.2,127.15,27.12202497]
[1742155241263,0.03,127.2,127.16,0.063]
[1742155241464,24.93984886,127.19,127.16,0.063]
[1742155241847,0.03,127.2,127.18,27.12202497]
[1742155242167,0.03,127.2,127.17,27.12202497]
[1742155243466,0.03,127.2,127.18,27.12202497]
[1742155244463,0.03,127.2,127.17,27.12202497]
[1742155244869,18.64964886,127.19,127.16,0.063]
[1742155245042,27.12202497,127.17,127.16,0.063]
[1742155245242,7.58,127.17,127.16,0.063]
[1742155245763,13.8707,127.17,127.16,0.063]
[1742155246244,26.22964886,127.17,127.16,0.063]
[1742155247491,32.52034886,127.17,127.16,0.063]
[1742155247667,26.22964886,127.17,127.16,0.063]
[1742155248039,32.52034886,127.17,127.16,0.063]
[1742155248760,7.58,127.17,127.16,0.063]
[1742155248965,18.64964886,127.18,127.16,0.063]
[1742155249367,45.77167383,127.18,127.16,0.063]
[1742155249874,0.03,127.2,127.16,0.063]
[1742155250049,0.03,127.2,127.19,27.12202497]
[1742155250775,0.03,127.2,127.19,28.63392497]
[1742155250982,0.03,127.2,127.19,28.91824811]
[1742155251268,0.03,127.2,127.19,56.04027308]
[1742155251660,0.03,127.2,127.19,28.63392497]
[1742155251861,0.03,127.2,127.19,34.92372497]
[1742155252369,0.03,127.2,127.19,35.20804811]
[1742155252579,0.03,127.2,127.19,62.33007308]
[1742155252746,0.03,127.2,127.19,35.20804811]
[1742155253146,0.03,127.2,127.19,28.63392497]
[1742155253574,0.03,127.2,127.19,62.33007308]
[1742155253779,0.03,127.22,127.21,47.40634811]
[1742155253983,0.03,127.24,127.22,12.6018]
[1742155254164,0.03,127.28,127.23,28.58488299]
[1742155254350,0.03,127.28,127.26,27.12202497]
[1742155254576,0.03,127.28,127.26,56.04027308]
[1742155254752,0.03,127.28,127.26,144.70027308]
[1742155254985,0.03,127.28,127.27,27.40634811]
[1742155255579,0.03,127.28,127.27,27.12202497]
[1742155255760,0.03,127.28,127.26,28.63392497]
[1742155255967,0.03,127.28,127.26,1.5119]
[1742155256164,0.03,127.28,127.27,27.12202497]
[1742155257482,0.03,127.28,127.26,1.5119]
[1742155257682,0.03,127.28,127.25,27.12202497]
[1742155257978,0.03,127.28,127.26,27.12202497]
[1742155258855,18.67964886,127.28,127.24,27.12202497]
[1742155259657,53.74167383,127.28,127.22,28.63392497]
[1742155259858,53.74167383,127.28,127.23,27.12202497]
[1742155260061,6.2858,127.27,127.23,27.12202497]
[1742155260685,45.77167383,127.26,127.21,27.12202497]
[1742155260865,18.64964886,127.26,127.22,27.12202497]
[1742155261069,22.0004,127.27,127.22,27.12202497]
[1742155261268,22.0004,127.27,127.23,27.12202497]
[1742155262981,0.03,127.28,127.26,27.12202497]
[1742155263164,0.03,127.28,127.27,27.12202497]
[1742155264292,0.03,127.28,127.25,27.12202497]
[1742155264480,18.64964886,127.25,127.19,6.3135]
[1742155264667,18.64964886,127.25,127.2,27.12202497]
[1742155264871,0.16985036,127.2,127.18,1.6361]
[1742155265576,0.16985036,127.2,127.19,27.12202497]
[1742155267164,6.45915036,127.2,127.17,27.12202497]
[1742155268285,6.2902,127.18,127.16,0.063]
[1742155268459,14.2502,127.18,127.16,0.063]
[1742155269767,18.64964886,127.17,127.16,0.063]
[1742155270082,14.2502,127.18,127.16,0.063]
[1742155270468,18.64964886,127.17,127.16,0.063]
[1742155270677,45.77167383,127.17,127.16,0.063]
[1742155271906,18.64964886,127.17,127.16,0.063]
[1742155272084,45.77167383,127.17,127.16,0.063]
[1742155272275,18.64964886,127.17,127.16,0.063]
[1742155272596,24.94034886,127.17,127.16,0.063]
[1742155272969,7.96,127.18,127.16,0.063]
[1742155273185,18.64964886,127.18,127.16,0.063]
[1742155273699,0.16985036,127.2,127.17,27.12202497]
[1742155274583,0.16985036,127.2,127.16,27.18502497]
[1742155274769,6.45925036,127.2,127.16,0.063]
[1742155274968,18.64964886,127.19,127.16,0.063]
[1742155275179,18.64964886,127.17,127.16,0.063]
[1742155275794,45.77167383,127.17,127.16,0.063]
[1742155276133,18.64964886,127.18,127.16,0.063]
[1742155276273,27.12202497,127.17,127.16,0.063]
[1742155276473,45.77167383,127.17,127.16,0.063]
[1742155276681,52.06237383,127.17,127.16,0.063]
[1742155278397,52.34669697,127.17,127.16,0.0001]
[1742155278572,58.52809697,127.17,127.16,0.0001]
[1742155279880,59.02809697,127.17,127.16,0.0001]
[1742155280080,58.52809697,127.17,127.16,0.0001]
[1742155280413,59.02809697,127.17,127.16,0.0001]
[1742155282094,58.52809697,127.17,127.16,0.0001]
[1742155282601,59.02809697,127.17,127.16,0.0001]
[1742155283483,18.64964886,127.12,127.08,0.063]
[1742155283801,18.64964886,127.09,127.08,0.063]
[1742155284492,7.84,127.11,127.08,27.18502497]
[1742155284700,6.2927,127.13,127.1,27.12202497]
[1742155284902,0.14178887,127.11,127.1,27.12202497]
[1742155285076,0.14178887,127.11,127.08,27.18502497]
[1742155285286,0.14178887,127.11,127.1,27.12202497]
[1742155285597,0.14178887,127.11,127.09,27.12202497]
[1742155286706,0.14178887,127.11,127.08,33.48012497]
[1742155286998,0.14178887,127.11,127.09,27.12202497]
[1742155288808,6.43548887,127.11,127.08,27.18502497]
[1742155289102,26.50964886,127.1,127.09,0.063]
[1742155290301,7.86,127.1,127.09,0.063]
[1742155290602,26.50964886,127.1,127.09,0.063]
[1742155290900,32.80384886,127.1,127.09,0.063]
[1742155293506,18.64964886,127.09,127.04,0.063]
[1742155293802,18.64964886,127.06,127.04,0.063]
[1742155294005,34.94202497,127.05,127.04,0.063]
[1742155294211,26.46964886,127.05,127.04,0.063]
[1742155295009,7.82,127.05,127.04,0.063]
[1742155295189,14.1167,127.05,127.04,0.063]
[1742155295512,32.76634886,127.05,127.04,0.063]
[1742155295708,59.88837383,127.05,127.04,0.063]
[1742155296007,32.76634886,127.05,127.04,0.063]
[1742155296710,59.88837383,127.05,127.04,0.063]
[1742155297583,18.64964886,127.04,127.03,0.0001]
[1742155297782,45.77167383,127.04,127.03,0.0001]
[1742155298508,46.05599697,127.04,127.03,0.0001]
[1742155298807,52.31299697,127.04,127.03,0.0001]
[1742155298983,58.61019697,127.04,127.03,0.0001]
[1742155299386,18.933972,127.0,126.98,0.063]
[1742155299590,53.55167383,126.99,126.98,0.063]
[1742155300686,53.55167383,126.99,126.98,0.0001]
[1742155300687,53.83599697,126.99,126.98,0.0001]
[1742155301089,60.13569697,126.99,126.98,0.0001]
[1742155301302,60.63569697,126.99,126.96,0.0001]
[1742155301495,65.77167383,126.97,126.96,0.0001]
[1742155303311,72.07237383,126.97,126.96,0.0001]
[1742155303516,113.17237383,126.97,126.96,0.0001]
[1742155304011,86.05034886,126.97,126.96,0.0001]
[1742155304588,59.74964886,126.97,126.96,0.0001]
[1742155304807,18.64964886,126.97,126.96,0.0001]
[1742155305012,18.81251816,126.97,126.96,0.0001]
[1742155305711,0.1628693,126.97,126.96,0.0001]
[1742155306611,6.4635693,126.97,126.96,0.0001]
[1742155308594,33.58559427,126.97,126.96,0.0001]
[1742155308803,6.4635693,126.97,126.96,0.0001]
[1742155310909,33.58559427,126.97,126.96,0.0001]
[1742155311521,52.23524313,126.97,126.96,0.0001]
[1742155311834,52.51956627,126.97,126.96,0.0001]
[1742155313514,60.21956627,126.97,126.96,0.0001]
[1742155313713,59.93524313,126.97,126.96,0.0001]
[1742155315548,32.81321816,126.97,126.96,0.0001]
[1742155315719,59.93524313,126.97,126.96,0.0001]
[1742155316025,59.91524313,126.97,126.96,0.0001]
[1742155316209,32.79321816,126.97,126.96,0.0001]
[1742155318218,32.77321816,126.97,126.96,0.0001]
[1742155321220,59.89524313,126.97,126.96,0.0001]
[1742155321414,60.17956627,126.97,126.96,0.0001]
[1742155323226,50.04229993,126.97,126.96,0.0001]
[1742155324905,32.93027896,126.97,126.96,0.0001]
[1742155325107,0.3199301,126.97,126.96,16.98485863]
[1742155325334,0.3199301,126.97,126.96,1.5218]
[1742155325816,0.1570608,126.97,126.96,1.5218]
[1742155327327,6.4577608,126.97,126.96,1.5218]
[1742155327510,0.1570608,126.97,126.96,18.50655863]
[1742155328640,0.1570608,126.97,126.96,1.5218]
[1742155328816,0.1570608,126.97,126.96,18.50655863]
[1742155329412,6.4577608,126.97,126.96,18.50655863]
[1742155329737,25.10740966,126.97,126.96,1.5218]
[1742155331130,25.10740966,126.97,126.96,0.0001]
[1742155331425,42.09216829,126.97,126.96,0.0001]
[1742155332625,25.10740966,126.97,126.96,0.0001]
[1742155333011,6.4577608,126.97,126.96,16.98485863]
[1742155333212,0.1570608,126.97,126.96,16.98485863]
[1742155337927,0.1570608,126.97,126.96,0.0001]
[1742155338627,6.4577608,126.97,126.96,0.0001]
[1742155340223,0.1570608,126.97,126.96,16.98485863]
[1742155342436,0.1570608,126.97,126.96,23.28595863]
[1742155343242,0.1570608,126.97,126.96,16.98485863]
[1742155343931,0.1570608,126.97,126.96,23.28595863]
[1742155345018,0.30816986,126.97,126.96,23.28595863]
[1742155345844,0.22693725,126.98,126.97,7.8196]
[1742155346031,0.22693725,126.98,126.97,25.08868177]
[1742155348334,0.22693725,126.98,126.97,24.80435863]
[1742155348518,0.22693725,126.98,126.97,18.50365863]
[1742155351739,0.14539373,126.99,126.97,18.50365863]
[1742155351740,0.14539373,126.99,126.97,25.08868177]
[1742155351943,0.14539373,126.99,126.98,17.26908177]
[1742155352119,0.16961113,127.01,126.99,6.2997]
[1742155352447,0.16961113,127.01,127.0,16.98475863]
[1742155352937,0.17020256,127.02,127.0,35.7880404]
[1742155353149,0.17020256,127.02,127.01,40.5933404]
[1742155353642,0.16624554,127.04,127.01,40.5933404]
[1742155353826,0.16624554,127.04,127.02,33.96951726]
[1742155354243,0.16624554,127.04,127.02,40.5520404]
[1742155358624,0.16676499,127.05,127.03,0.28432314]
[1742155358947,0.063,127.11,127.05,1.81852314]
[1742155359137,0.063,127.11,127.1,16.98475863]
[1742155360738,0.063,127.11,127.1,24.81315863]
[1742155361132,0.063,127.11,127.1,18.51895863]
[1742155361535,26.3214,127.16,127.1,18.51895863]
[1742155361536,0.03,127.16,127.11,0.28432314]
[1742155361745,0.03,127.16,127.15,16.98475863]
[1742155363928,0.03,127.16,127.15,31.43448177]
[1742155364742,18.64964886,127.24,127.16,0.28432314]
[1742155365055,0.15356714,127.22,127.18,6.2902]
[1742155365352,0.15356714,127.22,127.21,16.98475863]
[1742155365841,0.15356714,127.22,127.19,16.98475863]
[1742155367170,6.44226714,127.22,127.2,27.05519496]
[1742155367845,6.44226714,127.22,127.18,27.05519496]
[1742155368044,53.30484382,127.21,127.16,27.05519496]
[1742155369338,6.2893,127.2,127.17,27.05519496]
[1742155369844,42.9294621,127.22,127.19,27.05519496]
[1742155369845,0.15356714,127.22,127.19,27.05519496]
[1742155370048,0.15356714,127.22,127.21,27.05519496]
[1742155370456,6.44186714,127.22,127.2,27.05519496]
[1742155371054,0.15356714,127.22,127.2,27.05519496]
[1742155373755,18.64964886,127.21,127.15,1.5342]
[1742155374060,18.64964886,127.21,127.18,27.05519496]
[1742155374662,6.2893,127.2,127.18,27.05519496]
[1742155375036,18.64964886,127.19,127.16,0.063]
[1742155375341,18.64964886,127.19,127.16,27.11819496]
[1742155376971,18.64964886,127.19,127.16,0.063]
[1742155376972,6.2902,127.18,127.16,0.063]
[1742155377266,6.2902,127.18,127.16,27.11819496]
[1742155379060,18.64964886,127.17,127.16,27.11819496]
[1742155379263,18.64964886,127.17,127.16,0.063]
[1742155379761,6.2902,127.18,127.16,0.063]
[1742155379944,6.2902,127.18,127.16,27.11819496]
[1742155380144,7.6,127.2,127.17,27.05519496]
[1742155380344,0.18356714,127.22,127.19,27.05519496]
[1742155380541,6.47206714,127.22,127.19,27.05519496]
[1742155380774,18.64964886,127.21,127.18,27.05519496]
[1742155381336,6.2893,127.2,127.18,27.05519496]
[1742155381754,6.2893,127.2,127.17,27.05519496]
[1742155383253,18.64964886,127.19,127.17,27.05519496]
[1742155383567,32.51984886,127.18,127.16,0.063]
[1742155383738,18.64964886,127.17,127.16,0.063]
[1742155384164,40.92539496,127.18,127.16,0.063]
[1742155384334,18.64964886,127.17,127.16,0.063]
[1742155385455,13.8702,127.18,127.16,0.063]
[1742155386969,6.2902,127.18,127.16,0.063]
[1742155387149,7.58,127.17,127.16,27.11819496]
[1742155387550,7.58,127.17,127.16,0.063]
[1742155387551,13.8707,127.17,127.16,0.063]
[1742155387750,7.58,127.17,127.16,0.063]
[1742155387949,42.80609496,127.22,127.16,27.11819496]
[1742155388173,6.3184,127.22,127.2,27.05519496]
[1742155388536,24.96804886,127.22,127.2,27.05519496]
[1742155388963,0.03,127.22,127.21,27.05519496]
[1742155389143,0.03,127.22,127.21,16.90594221]
[1742155389638,6.3183,127.22,127.21,16.90594221]
[1742155390276,6.3183,127.22,127.2,16.90594221]
[1742155391869,6.3183,127.22,127.19,16.90594221]
[1742155392167,24.96794886,127.22,127.19,16.90594221]
[1742155392470,0.03,127.22,127.21,16.90594221]
[1742155393246,0.03,127.22,127.21,25.45506535]
[1742155394054,0.03,127.22,127.21,31.74386535]
[1742155394568,0.03,127.27,127.22,0.28432314]
[1742155394780,0.03,127.27,127.26,33.81188442]
[1742155394956,0.03,127.27,127.26,16.90594221]
[1742155395272,0.03,127.27,127.26,27.02658808]
[1742155395666,0.03,127.27,127.25,27.02658808]
[1742155396175,0.03,127.27,127.26,27.02658808]
[1742155397657,0.03,127.27,127.25,27.02658808]
[1742155397972,0.03,127.27,127.26,27.02658808]
[1742155398567,0.03,127.27,127.25,27.02658808]
[1742155398878,0.03,127.27,127.22,0.28432314]
[1742155399056,0.03,127.27,127.26,27.02658808]
[1742155399559,0.03,127.27,127.21,12.34324086]
[1742155399754,0.03,127.27,127.26,27.02658808]
[1742155400265,0.03,127.27,127.21,19.81052795]
[1742155400458,0.03,127.27,127.26,27.02658808]
[1742155401274,0.03,127.27,127.25,27.02658808]
[1742155401952,0.03,127.27,127.26,27.02658808]
[1742155402367,0.03,127.27,127.26,54.05317616]
[1742155402575,0.03,127.27,127.26,27.02658808]
[1742155403275,0.03,127.27,127.26,54.05317616]
[1742155403576,0.03,127.27,127.26,60.33947616]
[1742155404466,0.03,127.27,127.26,27.02658808]
[1742155405073,0.03,127.27,127.26,60.33947616]
[1742155405260,0.03,127.27,127.26,62.2124993]
[1742155405452,0.03,127.28,127.26,68.5294993]
[1742155405776,0.03,127.28,127.27,27.31091122]
[1742155406366,0.03,127.28,127.27,33.59671122]
[1742155406570,0.03,127.28,127.27,345.59671122]
[1742155407783,0.03,127.28,127.27,27.31091122]
[1742155408177,0.03,127.28,127.27,27.02658808]
[1742155410380,0.03,127.28,127.27,33.59671122]
[1742155410773,0.03,127.28,127.27,34.77467668]
[1742155411986,0.03,127.28,127.27,27.31091122]
[1742155412280,0.03,127.28,127.27,27.02658808]
[1742155413383,0.03,127.28,127.27,33.59671122]
[1742155414365,0.03,127.29,127.27,33.59671122]
[1742155414565,0.03,127.29,127.28,27.02658808]
[1742155415060,0.03,127.29,127.28,16.87435262]
[1742155415266,0.03,127.29,127.28,328.87435262]
[1742155415689,0.03,127.29,127.28,335.15965262]
[1742155415890,0.03,127.34,127.3,0.28432314]
[1742155416083,0.03,127.34,127.33,16.87435262]
[1742155418205,0.03,127.34,127.32,16.87435262]
[1742155419892,0.03,127.34,127.29,6.0351]
[1742155419893,0.03,127.34,127.31,16.87435262]
[1742155420076,0.03,127.34,127.32,16.87435262]
[1742155420584,0.03,127.34,127.33,16.87435262]
[1742155420790,0.03,127.34,127.32,16.87435262]
[1742155421381,0.03,127.34,127.31,16.87435262]
[1742155421994,0.03,127.34,127.32,16.87435262]
[1742155422408,0.03,127.34,127.31,16.87435262]
[1742155423396,0.03,127.34,127.32,16.87435262]
[1742155423974,0.03,127.34,127.33,16.87435262]
[1742155425193,0.03,127.34,127.32,16.87435262]
[1742155425493,0.03,127.34,127.33,16.87435262]
[1742155428787,0.03,127.34,127.33,23.44147576]
[1742155428992,0.03,127.35,127.34,16.87435262]
[1742155429488,0.03,127.35,127.33,4.01494674]
[1742155429694,0.03,127.35,127.34,16.87435262]
[1742155431502,0.03,127.35,127.33,16.87435262]
[1742155432182,18.64964886,127.34,127.31,16.87435262]
[1742155432488,35.52400148,127.34,127.29,16.87435262]
[1742155432904,35.52400148,127.34,127.27,3.90773124]
[1742155432905,18.64964886,127.3,127.27,0.063]
[1742155433100,6.619,127.32,127.27,0.063]
[1742155433101,18.64964886,127.28,127.27,0.063]
[1742155433689,23.32275072,127.28,127.27,0.063]
[1742155434199,10.95840186,127.28,127.27,0.063]
[1742155434398,4.67310186,127.28,127.27,16.93735262]
[1742155435618,10.95840186,127.28,127.27,0.063]
[1742155436604,29.60805072,127.28,127.27,0.063]
[1742155437708,10.95840186,127.28,127.27,0.063]
[1742155438886,29.60805072,127.28,127.27,0.0001]
[1742155439082,46.48240334,127.28,127.27,0.0001]
[1742155439704,29.60805072,127.28,127.27,0.0001]
[1742155439905,10.95840186,127.28,127.27,0.0001]
[1742155440093,29.60805072,127.28,127.27,0.0001]
[1742155442189,10.95840186,127.28,127.27,0.0001]
[1742155444708,10.95840186,127.28,127.27,0.0001]
[1742155445296,29.60805072,127.28,127.27,0.0001]
[1742155445498,70.14240334,127.28,127.27,0.0001]
[1742155445701,46.48240334,127.28,127.27,0.0001]
[1742155446288,111.52672648,127.28,127.27,0.0001]
[1742155447297,70.70805072,127.28,127.27,0.0001]
[1742155447816,10.95840186,127.28,127.27,0.0001]
[1742155449620,10.98840186,127.28,127.27,0.0001]
[1742155451007,29.63805072,127.28,127.27,0.0001]
[1742155451210,46.51240334,127.28,127.27,0.0001]
[1742155451709,46.79672648,127.28,127.27,0.0001]
[1742155452102,70.45672648,127.28,127.27,0.0001]
[1742155452707,70.95672648,127.28,127.27,0.0001]
[1742155452910,18.933972,127.25,127.22,0.063]
[1742155453112,7.58,127.24,127.22,0.063]
[1742155453299,18.64964886,127.23,127.22,0.063]
[1742155453495,18.933972,127.23,127.18,16.87435262]
[1742155453732,16.87435262,127.21,127.16,1.6707]
[1742155454014,16.87435262,127.21,127.16,18.54505262]
[1742155454221,4.67310186,127.23,127.18,16.87435262]
[1742155454395,18.64964886,127.22,127.2,16.87435262]
[1742155454598,18.64964886,127.22,127.19,16.87435262]
[1742155454822,4.67310186,127.23,127.2,16.87435262]
[1742155455026,23.32275072,127.23,127.2,16.87435262]
[1742155455730,23.32275072,127.23,127.19,16.87435262]
[1742155456620,23.32275072,127.23,127.2,16.87435262]
[1742155457008,24.93744886,127.23,127.2,16.87435262]
[1742155457214,24.93744886,127.23,127.19,16.87435262]
[1742155457525,18.64964886,127.23,127.19,16.87435262]
[1742155457700,18.64964886,127.23,127.2,16.87435262]